Cogmind - Beta 13 @@@ ROGUE MODE // 2024.05.09 @ 17:43:11 Player: JP Result: Smashed by cave-in Performance ------------- Evolutions (0) 0 Regions Visited (2) 400 Robots Destroyed (9) 45 Value Destroyed (275) 275 Prototype IDs (0) 0 Alien Tech Used (0) 0 Bonus (0) 0 TOTAL SCORE: 720 Bonus ------- None Cogmind --------- Core Integrity 0/250 Matter 299/300 Energy 93/100 System Corruption 2% Temperature Cool (0) Movement Walking (120) Location -10/Subcaves Parts ------- > --- POWER (1) -------- (None) > --- PROPULSION (2) --- Aluminum Leg Aluminum Leg > --- UTILITY (2) ------ Small Storage Unit > --- WEAPON (2) ------- Particle Gun Subdweller Machine Gun > --- INVENTORY (8) ---- Light Ion Engine Aluminum Leg Makeshift Leg Subdweller Optics Sensor Array Scrap Shield Barrage Gun Peak State ------------ > --- POWER ------------ Makeshift Power Source > --- PROPULSION ------- Aluminum Leg Aluminum Leg > --- UTILITY ---------- Small Storage Unit Sensor Array > --- WEAPON ----------- Particle Gun Subdweller Machine Gun > --- INVENTORY -------- Light Ion Engine Aluminum Leg Subdweller Optics Sensor Array Scrap Shield Medium Laser [Rating: 13] Favorites ----------- Power Ion Engine Engine Ion Engine Propulsion Aluminum Leg Leg Aluminum Leg Utility Small Storage Unit Device Sensor Array Storage Small Storage Unit Weapon Medium Laser Energy Gun Medium Laser Ballistic Gun Assault Rifle Build | -11 -10 -10 ------- Run | Yrd Mat Sub Slots Evolved . | . . . Power . | . . . Propulsion . | . . . Utility . | . . . Weapon . | . . . Parts Attached 20 | 6 9 5 Power 6 | 1 3 2 Engine 6 | 1 3 2 Core . | . . . Reactor . | . . . Propulsion 5 | 2 3 . Treads . | . . . Leg 5 | 2 3 . Wheel . | . . . Hover . | . . . Flight . | . . . Utility 2 | 1 1 . Device 1 | . 1 . Storage 1 | 1 . . Processor . | . . . Hackware . | . . . Protection . | . . . Artifact . | . . . Weapon 7 | 2 2 3 Energy Gun 5 | 2 1 2 Energy Cannon . | . . . Ballistic Gun 2 | . 1 1 Ballistic Cannon . | . . . Launcher . | . . . Special Weapon . | . . . Impact Weapon . | . . . Slashing Weapon . | . . . Piercing Weapon . | . . . Special Melee Weapon . | . . . Unidentified Prototypes . | . . . Parts Lost 4 | . 1 3 Power 3 | . 1 2 Propulsion . | . . . Utility 1 | . . 1 Weapon . | . . . Highest Loss Streak 3 | . 1 3 To Critical Strikes . | . . . Average Slot Usage (%) 95 | . 94 98 Engine 13 | . 13 12 Leg 27 | . 27 28 Device 10 | . 9 14 Storage 14 | . 14 14 Energy Gun 18 | . 18 14 Ballistic Gun 9 | . 8 14 Naked Turns . | . . . Heaviest Build 18 | 12 16 18 Greatest Support 20 | 20 20 20 Greatest Overweight (x) 2 | . 2 . Average Overweight (x) . | . . . Largest Inventory Capacity 8 | 8 8 8 Average Capacity 7 | 6 8 8 Most Carried 8 | 5 8 8 Average Carried 4 | 2 4 6 Final Capacity 8 | 8 8 8 Final Carried 8 | 2 5 8 Class Distribution -------------------- 71% | Scavenger-Mutant 28% | Mutant Dominant Class ---------------- Scavenger-Mutant | -10/Materials Scavenger-Mutant | -10/Subcaves Resources | -11 -10 -10 ----------- Run | Yrd Mat Sub Matter Collected 425 | 91 284 50 Remotely . | . . . Salvage Created 350 | . 318 32 Parts 20 | . 17 3 Haulers Intercepted 1 | . 1 . Recyclers Shooed . | . . . Parts Field Recycled . | . . . Retrieved Matter . | . . . Parts Self-Destructed . | . . . Prevented . | . . . Kills | -11 -10 -10 ------- Run | Yrd Mat Sub Combat Hostiles Destroyed 7 | . 6 1 Guns 6 | . 5 1 Classes Destroyed 4 | . 3 1 Hauler 1 | . 1 . Watcher 1 | . 1 . Grunt 6 | . 6 . Subdweller 1 | . . 1 Best Kill Streak 2 | . 2 1 Combat Bots Only 1 | . 1 1 Max Kills in Single Turn 1 | . 1 1 Gunslinging . | . . . Exploded . | . . . Melee . | . . . Uniques/NPCs Destroyed . | . . . Combat | -11 -10 -10 -------- Run | Yrd Mat Sub Hostile Shots Fired 45 | . 30 15 Missed 11 | . 8 3 Damage Taken 853 | . 323 530 Core 301 | . 125 176 Absorbed by Shields . | . . . Core Remaining (%) 100 | 100 . . Volleys Fired 42 | . 37 5 Largest 2 | . 2 2 Hottest 115 | . 115 95 Shots Fired 84 | . 74 10 Gun 84 | . 74 10 Cannon . | . . . Launcher . | . . . Special . | . . . Kinetic 5 | . . 5 Thermal 79 | . 74 5 Explosive . | . . . Electromagnetic . | . . . Robot Hit Streak 7 | . 7 3 Robot Miss Streak 5 | . 5 3 Penetration Max . | . . . Secondary Targets . | . . . Shots Hit Robots 44 | . 38 6 Core Hits 17 | . 14 3 Critical Kills . | . . . Critical Parts Destroyed . | . . . Critical Strikes 1 | . 1 . Burn 1 | . 1 . Melee Attacks . | . . . Impact . | . . . Slashing . | . . . Piercing . | . . . Sneak Attacks . | . . . Combat Hostiles . | . . . Follow-up Attacks . | . . . Damage Inflicted 647 | . 499 148 Guns 647 | . 499 148 Cannons . | . . . Explosions . | . . . Melee . | . . . Ramming . | . . . Kinetic 100 | . . 100 Thermal 547 | . 499 48 Explosive . | . . . Electromagnetic . | . . . Impact . | . . . Slashing . | . . . Piercing . | . . . Highest Corruption . | . . . Average Corruption . | . . . Corruption Purged . | . . . Corruption Blocked . | . . . Overload Shots . | . . . Overflow Damage . | . . . Projectiles . | . . . Explosions . | . . . Melee . | . . . Knockbacks . | . . . Impact . | . . . Kinetic . | . . . Secondary . | . . . Self-Inflicted Damage . | . . . Shots . | . . . Rammed . | . . . Targets Rammed . | . . . Kicked . | . . . Crushed . | . . . Highest Temperature 574 | . 574 . Average Temperature 167 | . 167 . Received Heat Transfer 150 | . 138 12 Effects 10 | . 10 . Shutdowns 1 | . 1 . Energy Bleed 3 | . 3 . Interference 2 | . 2 . Matter Decay 1 | . 1 . Short Circuit 1 | . 1 . Damage (core) 2 | . 2 . Siege Activations . | . . . Robots Corrupted . | . . . Combat Hostiles . | . . . Parts Fried . | . . . Impact Corruptions . | . . . Robots Melted 1 | . 1 . Combat Hostiles 1 | . 1 . Parts Melted 2 | . 2 . Heat Transferred 1591 | . 1480 111 Parts Sabotaged . | . . . Parts Stolen . | . . . Parts Stripped . | . . . Power Chain Reactions . | . . . Alert | -11 -10 -10 ------- Run | Yrd Mat Sub Peak Influence 162 | . 162 . Initial . | . . . Average 32 | . 33 . Maximum Alert Level . | . . . Low Security (%) 100 | 100 100 . Level 1 . | . . . Level 2 . | . . . Level 3 . | . . . Level 4 . | . . . Level 5 . | . . . High Security . | . . . Max Security . | . . . Squads Dispatched 3 | . 3 . Investigation 2 | . 2 . Extermination . | . . . Reinforcement 1 | . 1 . Assault . | . . . Garrison . | . . . Intercept . | . . . Searches Triggered . | . . . Construction Impeded . | . . . Haulers Reinforced . | . . . Active Scanning Responses . | . . . Cargo Convoy Interrupts . | . . . Stealth | -11 -10 -10 --------- Run | Yrd Mat Sub Distress Signals 1 | . 1 . Communications Jammed . | . . . Distress Signals . | . . . Times Spotted 23 | . 14 9 Peak Tracking Total 5 | . 3 5 Tactical Retreats 1 | . 1 . Traps | -11 -10 -10 ------- Run | Yrd Mat Sub Traps Triggered 4 | . 4 . Indirectly . | . . . Trap Hack Attempts . | . . . Triggered . | . . . Disarmed . | . . . Reprogrammed . | . . . Reused . | . . . Traps Extracted . | . . . Installed . | . . . Triggered . | . . . Machines | -11 -10 -10 ---------- Run | Yrd Mat Sub Machines Disabled . | . . . Max in Single Turn . | . . . Machines Repaired . | . . . Machines Dismantled . | . . . Machines Sabotaged . | . . . Overloaded Fab Kills . | . . . Hacking | -11 -10 -10 --------- Run | Yrd Mat Sub Machines Accessed 4 | . 4 . Terminals 4 | . 4 . Fabricators . | . . . Repair Stations . | . . . Recycling Units . | . . . Scanalyzers . | . . . Garrison Access . | . . . Total Hacks 11 | . 11 . Successful 4 | . 4 . Failed 7 | . 7 . Catastrophic 1 | . 1 . Database Lockouts . | . . . Manual 4 | . 4 . Terminals 11 | . 11 . Fabricators . | . . . Repair Stations . | . . . Recycling Units . | . . . Scanalyzers . | . . . Garrison Access . | . . . Terminal Hacks 3 | . 3 . Branch Access Points 1 | . 1 . Alert Level 1 | . 1 . Locate Traps 1 | . 1 . Fabricator Hacks . | . . . Repair Station Hacks . | . . . Recycling Unit Hacks . | . . . Scanalyzer . | . . . Garrison Access Hacks . | . . . Unauthorized Hacks 1 | . 1 . Terminals 1 | . 1 . Botnet 1 | . 1 . Fabricators . | . . . Repair Stations . | . . . Recycling Units . | . . . Scanalyzers . | . . . Garrison Access . | . . . Data Cores Recovered . | . . . Used . | . . . Hacking Detections 4 | . 4 . Full Trace Events 1 | . 1 . Feedback Events . | . . . Feedback Blocked . | . . . Robot Schematics Acquired . | . . . Robots Built . | . . . Authchips . | . . . Time . | . . . Total Robot Build Rating . | . . . Part Schematics Acquired . | . . . Parts Built . | . . . Authchips . | . . . Time . | . . . Total Part Build Rating . | . . . Parts Repaired . | . . . Time . | . . . Parts Recycled . | . . . Recycled Matter . | . . . Retrieved Matter . | . . . Retrieved Components . | . . . Parts Scanalyzed . | . . . Part Schematics Acquired . | . . . Parts Damaged . | . . . Bothacking | -11 -10 -10 ------------ Run | Yrd Mat Sub Used RIF Installer . | . . . Robots Hacked . | . . . Non-combat . | . . . Combat . | . . . Robot Hacks Applied . | . . . Relay Couplers Released . | . . . Fabnet Peak Effective % . | . . . Robots Rewired . | . . . Allies Hacked . | . . . Hacks Repelled . | . . . Allies | -11 -10 -10 -------- Run | Yrd Mat Sub Total Allies . | . . . Largest Group . | . . . Highest-Rated Group . | . . . Highest-Rated Ally . | . . . Total Orders . | . . . Ally Attacks . | . . . Total Damage . | . . . Kills . | . . . Allies Corrupted . | . . . Allies Melted . | . . . Intel | -11 -10 -10 ------- Run | Yrd Mat Sub Robot Analysis Total . | . . . Derelict Logs Recovered 1 | . . 1 Drone Launches . | . . . Drone Recoveries . | . . . Exploration | -11 -10 -10 ------------- Run | Yrd Mat Sub Turns Passed 1725 | 47 1563 115 Spaces Moved 428 | 40 326 62 Core 23 | 19 4 . Treads . | . . . Legs 405 | 21 322 62 Wheels . | . . . Hover . | . . . Flight . | . . . Fastest Speed 50 | 50 120 120 Average Speed 126 | 86 132 120 Slowest Speed 190 | 120 190 120 Overloaded Moves . | . . . Propulsion Burnouts . | . . . Robots Hopped . | . . . Cave-ins Triggered 1 | . . 1 Exploration Rate (%) 18 | 3 45 7 Regions Visited 2 Branch Regions 1 Pre-discovered Areas 1 | . . 1 Known Exits Taken . | . . . Unknown Exits Taken 2 | 1 1 . Scrap Searched 4 | . . 4 Spaces Dug . | . . . Terrain Destroyed . | . . . Melee . | . . . Projectile . | . . . AOE . | . . . Terrain Rammed . | . . . Walls Destroyed . | . . . Machines Disabled . | . . . Actions | -11 -10 -10 --------- Run | Yrd Mat Sub Total 1530 | 50 1383 97 Wait 1014 | . 1000 14 Move 426 | 39 325 62 Hop . | . . . Pick Up 22 | 5 10 7 Fast Attach 4 | 3 1 . Attach 13 | 3 6 4 Detach . | . . . Swap 3 | . 2 1 Drop 6 | . 2 4 Fire 42 | . 37 5 Melee . | . . . Ram . | . . . Kick . | . . . Crush . | . . . Escape Stasis . | . . . Rewire . | . . . Trap . | . . . Miscellaneous . | . . . Route ------- -11/Scrapyard -10/Materials (discovered 3 exits: [*Mat] / Min / [*Sub]) -10/Subcaves (discovered 1 exit: [*Mat]) History --------- Turn | Location | Event 13 | -11/Scrapyard | Discovered new exit (range 15) 48 | -11/Scrapyard | Entered Materials 243 | -10/Materials | Discovered new exit (range 16) 315 | -10/Materials | Build established: Mutant 650 | -10/Materials | Identified exit to Mines 926 | -10/Materials | Build established: Scavenger-Mutant 1599 | -10/Materials | Discovered new exit (range 12) 1611 | -10/Materials | Entered Subcaves 1652 | -10/Subcaves | Shifting Twisted Machinery released Sub. Beam Cannon 1655 | -10/Subcaves | Discovered new exit (range 11) 1663 | -10/Subcaves | Shifting Twisted Machinery released Riot Gun 1674 | -10/Subcaves | Learned location of Zion (-6) 1689 | -10/Subcaves | Disturbed a concealed Subdweller 1716 | -10/Subcaves | Ambushed by swarm of Subdwellers 1717 | -10/Subcaves | Core integrity fell below 50% 1723 | -10/Subcaves | Core integrity fell below 20% 1727 | -10/Subcaves | Crushed by falling debris 1727 | -10/Subcaves | Smashed by cave-in Last Messages --------------- EM-7I1(R) comes tumbling into view. HV Slug penetrates Wall. EM-7I1(R) suffers critical hit (Destroy). Acquired Barrage Gun. Subatomizers dissect the Med. Laser. LP-ZH6(R) emerges from the Twisted Machinery. Z0-AOB(R) emerges from the Twisted Machinery. Mak. Power Source destroyed. OQ-4WB(R) emerges from the Twisted Machinery. HV Slug penetrates Wall. Penetrated by HV Slug. BJ-JV8(R) emerges from the Twisted Machinery. LP-ZH6(R) destroyed. E2-6A2(R) emerges from the Twisted Machinery. EM-7I1(R) destroyed. IB-R94(R) emerges from the Twisted Machinery. The unstable cave ceiling collapses. Crushed by falling debris. Sensor Array destroyed. System corrupted by crushing effect (+2). Map ----- +----------------------------------------------------+ | ?????????????????????????????????????????????????? | | ?????????????????????????????????????????????????? | | ?????????????????????????????????????????????????? | | ?????????????????????????????????????????????????? | | ?????????????????????????????????????????????????? | | ?????????????????????????????????????????????????? | | ?????????????????????????????????????????????????? | | ?????????????????????????????????????????????????? | | ?????????????????????????????????????????????????? | | ?????????????????????????????????????????????????# | | ????????????????????????????????????????????????" | | ???????????????????????????????????????????????? | | ????????????????????????????????????????????????" | | ???????????????????????????????????????????????? | | ???????????????????????????????????????????????? | | ????????????????????????????????????????????????# | | ????????????????????????????????????????????????# | | ????????????????????????????????????????????????# | | ???????????????????????????????????????????????? | | ??????????????????????????????????###??????????## | | ??????????????????????????????????# ##????????## | | ??????????????????????????????????# ##???##### | | ??????????????????????????????????# "#####"" # | | ????????????????????????###???????# " # "#"" | | ??????????????????#######"# #????## """"""""![& # | | ??????????????????#""%[%#@RR#???## " " % %## | | ??????????????????#"% R%R###???# < ] ## &=&#? | | ??????????????????#" ! R[=#?????## [" #### # | | ??????????????????# %=!?????# " ##??# # | | ????????????????###; ;##??### # ""#??### | | ????????????????# g #### # "#????# | | ????????????????# ## ## #????#"" | | ????????????????### ?### # # ##????#"" | | ?????????????????# ? ## ?????# | | ?????????????????#### #### ##?????# | | ???????????????????# # #??# #???????# | | ???????????????????# ###??# #????????# | | ???????????????????# #??? #????????? | | ??????????????????# ? ????????? | | ???????????????? ## ?????????? | | ??????????????# ## ####?# ### ##?????????? | | ??????????????## ## #?????##??????????????? | | ???????????????## ## ?????????????????????? | | ????????????????# ##? ?????????????????????? | | ????????????????# ???# #?????????????????????? | | ????????????????# ???# #?????????????????????? | | ???????????????? ???# ?????????????????????? | | ?????????????????? ?????# ??????????????????????? | | ??????????????????????????#??????????????????????? | | ?????????????????????????????????????????????????? | +----------------------------------------------------+ Best States ------------- Heat Dissipation 25 Energy Generation 15 Energy Capacity 250 Matter Stores 300 Matter Capacity 300 Sight Range 16 Robot Scan Range 14 Terrain Scan Density 10 Evasion (%) 55 Item Schematics ----------------- None Robot Schematics ------------------ None Fabricated ------------ Nothing Alien Tech Used ----------------- None Achievements -------------- None Challenges ------------ None Game ------ Seed CryofiberStormStripper Manual? 0 Play Time 00:13:24 Cumulative 9.7 hours Start 2024.05.09 @ 04:12:40 End 2024.05.09 @ 17:43:11 Sessions 2 Manual Loads 0 Difficulty Rogue Special Mode None Game No. 15 Rogue 15 Adventurer 0 Explorer 0 Win Type - Total 0 Types 0/0/0/0/0/0/0/0/0 Lore% 17 Gallery% 18 Achievement% 16 Wizard Run 0 Options --------- Layout 1 ASCII 0 Keyboard 0 Movement Mouse Keybinds 0 Fullscreen 2 Font 24/Smallcaps Map View 50x35 Zoom Use 0% Tactical HUD 0 Map Filters NONE Filters NONE Steam 1 RUN: 1f7b4e61-4cb2-438d-8f49-63dea350ae6d